bitfinex-derivatives/quotes_BTCF0:USTF0_20241218
["timestamp","ask_amount","ask_price","bid_price","bid_amount"]
[1734557245404,0.049484,101130.0,101120.0,0.049488]
[1734557245599,0.049484,101130.0,101110.0,0.3608]
[1734557245809,0.049484,101130.0,101110.0,0.410292]
[1734557246212,0.5399275,101140.0,101130.0,0.0005]
[1734557246213,0.5894065,101140.0,101130.0,0.0005]
[1734557246518,0.9502065,101140.0,101130.0,0.0005]
[1734557246719,0.9502065,101140.0,101130.0,0.02228503]
[1734557246914,0.78186603,101140.0,101130.0,0.02228503]
[1734557247510,0.78386603,101140.0,101130.0,0.02228503]
[1734557247712,0.78386603,101140.0,101120.0,0.049988]
[1734557248206,0.049484,101130.0,101120.0,0.049488]
[1734557248613,0.425124,101130.0,101120.0,0.01409473]
[1734557249026,0.064324,101130.0,101120.0,0.01409473]
[1734557249616,0.065324,101130.0,101120.0,0.01409473]
[1734557250522,0.428124,101130.0,101120.0,0.01409473]
[1734557252322,0.413284,101130.0,101120.0,0.01409473]
[1734557253321,0.39101137,101130.0,101120.0,0.01409473]
[1734557254125,0.003,101130.0,101120.0,0.06358273]
[1734557254424,0.20820083,101130.0,101120.0,0.2319232]
[1734557254629,0.20820083,101130.0,101120.0,0.049488]
[1734557255227,0.56900083,101130.0,101120.0,0.049488]
[1734557255415,0.09011775,101130.0,101120.0,0.049488]
[1734557255618,0.09011775,101130.0,101120.0,0.410288]
[1734557256215,0.09011775,101130.0,101120.0,0.57862847]
[1734557256719,0.09011775,101130.0,101120.0,0.62160595]
[1734557257115,0.09011775,101130.0,101120.0,0.57862847]
[1734557257330,0.09011775,101130.0,101120.0,0.26080595]
[1734557257723,0.09011775,101130.0,101120.0,0.62160595]
[1734557258125,0.26877317,101130.0,101120.0,0.62160595]
[1734557258428,0.26877317,101130.0,101120.0,0.63262257]
[1734557258617,0.26877317,101130.0,101120.0,0.4642821]
[1734557259234,0.31825717,101130.0,101120.0,0.4642821]
[1734557259424,0.17056708,101130.0,101120.0,0.04297748]
[1734557260131,0.17056708,101130.0,101120.0,0.09246548]
[1734557260628,0.22971211,101130.0,101120.0,0.09246548]
[1734557261431,0.29087817,101130.0,101120.0,0.09246548]
[1734557262227,0.24139417,101130.0,101120.0,0.45326548]
[1734557262429,0.18022811,101130.0,101120.0,0.45326548]
[1734557263832,0.17922811,101130.0,101120.0,0.92160595]
[1734557264030,0.17922811,101130.0,101120.0,0.45426548]
[1734557264427,0.16963497,101130.0,101120.0,0.411288]
[1734557264734,0.16763497,101130.0,101120.0,0.413288]
[1734557265229,0.049484,101130.0,101120.0,0.413288]
[1734557265420,0.37440083,101130.0,101120.0,0.052488]
[1734557265626,0.37540083,101130.0,101120.0,0.051488]
[1734557266028,0.37540083,101130.0,101120.0,0.09249301]
[1734557266723,0.37540083,101130.0,101120.0,0.45129301]
[1734557266724,0.003,101130.0,101120.0,0.45129301]
[1734557266927,0.003,101130.0,101120.0,0.58899104]
[1734557267225,0.003,101130.0,101120.0,0.42065057]
[1734557267536,0.003,101130.0,101120.0,0.410288]
[1734557267729,0.04957204,101140.0,101120.0,0.410288]
[1734557268035,0.04957204,101140.0,101130.0,0.049484]
[1734557268936,0.05057204,101140.0,101130.0,0.049484]
[1734557269133,0.00109104,101140.0,101130.0,0.57862447]
[1734557269440,0.44353311,101140.0,101130.0,1.18612447]
[1734557269736,0.44353311,101140.0,101130.0,1.24429025]
[1734557269931,0.44553311,101140.0,101130.0,1.54429025]
[1734557270237,0.23630415,101150.0,101140.0,0.049479]
[1734557270435,0.23630415,101150.0,101140.0,0.86981947]
[1734557270933,0.14798643,101150.0,101140.0,0.86981947]
[1734557271131,0.19757165,101150.0,101140.0,0.701479]
[1734557271332,0.19857165,101150.0,101140.0,0.701479]
[1734557271530,0.20057165,101150.0,101140.0,0.701479]
[1734557272129,0.14132798,101150.0,101140.0,0.701479]
[1734557272534,0.14132798,101150.0,101140.0,0.340679]
[1734557272733,0.14132798,101150.0,101130.0,0.58521165]
[1734557272734,0.049479,101140.0,101130.0,0.58521165]
[1734557272932,0.049479,101140.0,101130.0,0.58421165]
[1734557273829,0.049479,101140.0,101130.0,0.59488517]
[1734557274030,0.050479,101140.0,101130.0,0.59488517]
[1734557274434,0.16880268,101140.0,101130.0,0.36015452]
[1734557275135,0.16880268,101140.0,101130.0,0.88929499]
[1734557275136,0.11932368,101140.0,101130.0,0.88929499]
[1734557275642,0.16880268,101140.0,101130.0,0.72095452]
[1734557276137,0.16880268,101140.0,101130.0,0.36015452]
[1734557277235,0.049484,101130.0,101120.0,0.410286]
[1734557277636,0.049484,101130.0,101120.0,0.45078244]
[1734557278140,0.13824466,101130.0,101120.0,0.45078244]
[1734557278334,0.49904466,101130.0,101120.0,0.04049644]
[1734557278538,0.49904466,101130.0,101110.0,1.53278659]
[1734557278838,0.049488,101120.0,101110.0,1.58227859]
[1734557279139,0.049488,101120.0,101110.0,1.28871909]
[1734557279343,0.049488,101120.0,101110.0,1.33661287]
[1734557279844,0.049488,101120.0,101110.0,1.34693406]
[1734557280335,0.050488,101120.0,101110.0,1.34561287]
[1734557280542,0.06783568,101130.0,101120.0,0.049488]
[1734557280739,0.14798643,101140.0,101130.0,0.049483]
[1734557280933,0.14798643,101140.0,101130.0,0.57862347]
[1734557281132,0.14798643,101140.0,101130.0,0.04049644]
[1734557281133,0.19746443,101140.0,101130.0,0.04049644]
[1734557281640,0.13824976,101140.0,101130.0,0.50078021]
[1734557281835,0.13824976,101140.0,101130.0,0.86158021]
[1734557282041,0.08877176,101140.0,101130.0,1.07778737]
[1734557282236,0.08877176,101140.0,101130.0,1.07778863]
[1734557282539,0.08877176,101140.0,101130.0,1.36328863]
[1734557282844,0.09077176,101140.0,101130.0,1.62279219]
[1734557283441,0.32557015,101160.0,101150.0,0.049473]
[1734557283641,0.27085072,101190.0,101180.0,0.049458]
[1734557283840,0.27085072,101190.0,101180.0,0.57859847]
[1734557283841,0.17758146,101190.0,101180.0,0.57859847]
[1734557284547,0.17769168,101190.0,101180.0,0.57859847]
[1734557285137,0.17769168,101190.0,101180.0,0.62633797]
[1734557285441,0.00011022,101190.0,101180.0,1.25434674]
[1734557286044,0.00111022,101190.0,101180.0,0.89354674]
[1734557286236,0.00111022,101190.0,101180.0,1.25434674]
[1734557286636,0.00111022,101190.0,101180.0,1.37271579]
[1734557286840,0.00111022,101190.0,101180.0,1.42043574]
[1734557287336,0.00111022,101190.0,101180.0,1.72038373]
[1734557287537,0.02132403,101220.0,101210.0,0.049444]
[1734557287734,0.07076303,101220.0,101210.0,0.049444]
[1734557288332,0.08560303,101220.0,101210.0,0.049444]
[1734557288539,0.07084328,101220.0,101210.0,0.049444]
[1734557288738,0.08164508,101220.0,101210.0,0.049444]
[1734557289140,0.08264508,101220.0,101210.0,0.049444]
[1734557289340,0.08264508,101220.0,101210.0,0.22417863]
[1734557289341,0.08314508,101220.0,101210.0,0.22417863]
[1734557289541,0.00306313,101220.0,101210.0,0.58497863]
[1734557289746,0.00158025,101220.0,101210.0,0.58497863]
[1734557290350,0.00108025,101220.0,101210.0,0.58497863]
[1734557290541,0.00108025,101220.0,101210.0,0.410244]
[1734557291342,0.00158025,101220.0,101210.0,0.410244]
[1734557292150,0.049444,101210.0,101200.0,0.74576214]
[1734557292549,0.36188025,101220.0,101200.0,0.45716214]
[1734557292747,0.41132025,101220.0,101200.0,0.45716214]
[1734557293144,0.68972025,101220.0,101200.0,0.45716214]
[1734557293546,0.00108025,101220.0,101210.0,0.049444]
[1734557294250,0.00108025,101220.0,101210.0,0.87858447]
[1734557294451,0.00108025,101220.0,101210.0,1.46978447]
[1734557294951,0.00108025,101220.0,101210.0,1.16978447]
[1734557295141,8.025e-05,101220.0,101210.0,1.46978447]
[1734557295347,0.00108025,101220.0,101210.0,1.46978447]
[1734557295849,0.00108025,101220.0,101210.0,1.40276398]
[1734557296052,0.00108025,101220.0,101210.0,1.70276398]
[1734557296250,2.5e-07,101220.0,101210.0,1.70276398]
[1734557296455,0.05090226,101260.0,101250.0,0.049424]
[1734557296652,0.049415,101270.0,101260.0,0.049419]
[1734557296853,0.410211,101280.0,101260.0,0.049419]
[1734557297451,9.821e-05,101270.0,101260.0,0.410219]
[1734557297653,9.821e-05,101270.0,101260.0,0.57855947]
[1734557298842,0.00109821,101270.0,101260.0,0.57855947]
[1734557299453,0.3608,101300.0,101280.0,0.04941]
[1734557299660,0.3608,101300.0,101290.0,0.049405]
[1734557300355,0.41031011,101300.0,101290.0,0.049405]
[1734557300551,0.04951011,101300.0,101290.0,0.049405]
[1734557300750,0.36091011,101300.0,101270.0,0.57855347]
[1734557300948,0.00011011,101300.0,101290.0,0.57854547]
[1734557301349,0.00111011,101300.0,101290.0,0.410205]
[1734557301753,0.00111011,101300.0,101290.0,0.049405]
[1734557302055,0.00111011,101300.0,101290.0,0.410205]
[1734557303958,0.00111011,101300.0,101290.0,0.57854547]
[1734557304857,1.1e-07,101300.0,101290.0,0.87854547]
[1734557305449,0.963381,101340.0,101330.0,0.049385]
[1734557305651,0.02073213,101340.0,101330.0,0.049385]
[1734557305850,0.02073213,101340.0,101330.0,0.410185]
[1734557306054,0.07011213,101340.0,101330.0,0.410185]
[1734557306761,0.049385,101330.0,101320.0,0.049388]
[1734557307151,0.049391,101320.0,101310.0,0.049394]
[1734557307347,0.0499,101300.0,101290.0,0.06125046]
[1734557307553,0.0499,101300.0,101290.0,0.0508847]
[1734557307756,0.0499,101300.0,101290.0,0.58002517]
[1734557307757,0.0005,101300.0,101290.0,0.58002517]
[1734557308461,0.3608,101310.0,101300.0,0.049398]
[1734557308655,0.410195,101310.0,101300.0,0.049398]
[1734557309056,0.049395,101310.0,101300.0,0.049398]
[1734557309463,0.049895,101310.0,101300.0,0.049398]
[1734557309853,0.410695,101310.0,101300.0,0.049398]
[1734557310273,0.0005,101310.0,101300.0,0.049398]
[1734557310563,0.05969136,101320.0,101310.0,0.049397]
[1734557311357,0.42049136,101320.0,101310.0,0.049397]
[1734557311664,0.42149136,101320.0,101310.0,0.049397]
[1734557312264,0.049401,101310.0,101300.0,0.049403]
[1734557312462,0.049404,101300.0,101290.0,0.0508837]
[1734557312665,0.410204,101300.0,101290.0,0.0508837]
[1734557312863,0.410204,101300.0,101290.0,0.0014807]
[1734557313063,0.695704,101300.0,101290.0,0.0014807]
[1734557314163,0.334904,101300.0,101290.0,0.0508887]
[1734557314365,0.2865,101300.0,101290.0,0.0508887]
[1734557314668,0.696704,101300.0,101290.0,0.0508887]
[1734557314968,0.3618,101300.0,101290.0,0.21922917]
[1734557315272,0.001,101300.0,101290.0,0.0508887]
[1734557316865,0.001,101300.0,101290.0,0.4116887]
[1734557318960,0.050401,101300.0,101290.0,0.0014807]
[1734557319162,0.411201,101300.0,101290.0,0.0014807]
[1734557319565,0.694101,101300.0,101290.0,0.0014807]
[1734557320271,0.411201,101300.0,101290.0,0.0508867]
[1734557322070,0.411201,101300.0,101290.0,0.0014807]
[1734557322466,0.411201,101300.0,101280.0,0.0597726]
[1734557322669,0.049406,101290.0,101280.0,0.0597726]
[1734557323069,0.411204,101300.0,101280.0,0.22811307]
[1734557323370,0.001,101300.0,101290.0,0.21774647]
[1734557323576,0.001,101300.0,101290.0,0.410206]
[1734557323869,0.049397,101310.0,101290.0,0.410206]
[1734557324065,0.049397,101310.0,101300.0,0.049401]
[1734557324565,0.58606711,101320.0,101300.0,0.410201]
[1734557324769,0.58606711,101320.0,101310.0,0.049396]
[1734557324770,0.55612797,101320.0,101310.0,0.049396]
[1734557325365,0.410193,101320.0,101310.0,0.049396]
[1734557325966,0.049403,101300.0,101290.0,0.049404]
[1734557326164,0.049403,101300.0,101290.0,0.05972519]
[1734557327566,0.050403,101300.0,101290.0,0.049404]
[1734557327967,0.411203,101300.0,101290.0,0.049404]
[1734557328368,0.050403,101300.0,101290.0,0.049404]
[1734557328569,0.57954347,101300.0,101280.0,0.4173082]
[1734557328764,0.57854647,101290.0,101280.0,0.4069456]
[1734557328967,1.14044647,101290.0,101280.0,0.4069456]
[1734557329269,1.14044647,101290.0,101270.0,0.40836818]
[1734557329270,0.049411,101280.0,101270.0,0.40836818]
[1734557329464,0.410211,101280.0,101270.0,0.40836818]
[1734557330475,0.411211,101280.0,101270.0,0.40836818]
[1734557330780,0.049418,101270.0,101260.0,0.049417]
[1734557331079,0.049423,101260.0,101250.0,0.42216593]
[1734557331269,0.04942,101270.0,101260.0,0.049423]
[1734557331468,0.41022,101270.0,101260.0,0.049423]
[1734557332067,0.049423,101260.0,101250.0,0.42216793]
[1734557332269,0.049423,101260.0,101250.0,0.42516793]
[1734557332970,0.050423,101260.0,101250.0,0.43116793]
[1734557333165,0.001,101260.0,101250.0,0.43116793]
[1734557334673,0.001,101260.0,101250.0,0.42816793]
[1734557334870,0.68306024,101280.0,101250.0,0.5965084]
[1734557335070,0.55779698,101280.0,101270.0,0.049418]
[1734557336179,0.410215,101280.0,101270.0,0.049418]
[1734557336774,0.411215,101280.0,101270.0,0.049418]
[1734557337083,0.001,101280.0,101270.0,0.049418]
[1734557337281,0.19699098,101290.0,101280.0,0.049413]
[1734557337579,0.14758198,101290.0,101280.0,0.049413]
[1734557338380,0.14758198,101290.0,101280.0,0.344113]
[1734557338884,0.049408,101290.0,101280.0,0.344113]
[1734557340179,0.049416,101280.0,101270.0,0.049417]
[1734557340381,0.410216,101280.0,101270.0,0.049417]
[1734557341373,0.049416,101280.0,101270.0,0.049417]
[1734557341573,0.050416,101280.0,101270.0,0.049417]
[1734557341879,0.411216,101280.0,101270.0,0.049417]
[1734557342579,0.001,101280.0,101270.0,0.049417]
[1734557342975,0.3618,101280.0,101270.0,0.049417]
[1734557343173,0.049418,101270.0,101260.0,0.2904]
[1734557343376,0.049423,101260.0,101250.0,0.29385924]
[1734557343771,0.410223,101260.0,101250.0,0.34328724]
[1734557344580,0.050423,101260.0,101250.0,0.0569093]
[1734557344773,0.001,101260.0,101250.0,0.0569093]
[1734557344970,0.050423,101260.0,101250.0,0.0569093]
[1734557345173,0.050423,101260.0,101250.0,0.0599093]
[1734557346774,0.01058612,101270.0,101250.0,0.0599093]
[1734557346981,0.32374199,101290.0,101280.0,0.049413]
[1734557347174,0.32374199,101290.0,101280.0,0.93935347]
[1734557347983,0.00148175,101290.0,101280.0,0.93935347]
[1734557348177,0.00248175,101290.0,101280.0,0.93935347]
[1734557349981,0.05188975,101290.0,101280.0,0.049413]
[1734557350774,0.05188975,101290.0,101280.0,0.49382012]
[1734557350969,0.04938975,101290.0,101280.0,0.44440712]
[1734557351680,0.04938975,101290.0,101270.0,0.70259294]
[1734557351877,0.09880175,101290.0,101270.0,0.70259294]
[1734557352185,0.049413,101280.0,101270.0,0.29237794]
[1734557352572,0.410213,101280.0,101270.0,0.29237794]
[1734557353286,0.410213,101280.0,101260.0,0.29237794]
[1734557353479,0.410218,101270.0,101260.0,0.29237794]
[1734557354078,0.049418,101270.0,101260.0,0.34180094]
[1734557354383,0.049418,101270.0,101260.0,0.29237794]
[1734557354579,0.049418,101270.0,101260.0,0.34180094]
[1734557354773,0.049418,101270.0,101260.0,0.34280094]
[1734557354980,0.049418,101270.0,101260.0,0.053423]
[1734557355383,0.049418,101270.0,101260.0,0.004]
[1734557355783,0.049418,101270.0,101260.0,0.053423]
[1734557356079,0.049418,101270.0,101260.0,0.004]
[1734557356585,0.410218,101270.0,101260.0,0.004]
[1734557358279,0.42052731,101270.0,101260.0,0.004]
[1734557358481,0.88886778,101270.0,101260.0,1e-06]
[1734557359183,0.42052731,101270.0,101260.0,1e-06]
[1734557359392,0.05972731,101270.0,101260.0,0.52914147]
[1734557359691,0.05972731,101270.0,101260.0,0.360801]
[1734557360486,0.05972731,101270.0,101260.0,0.3608]
[1734557360487,0.06172731,101270.0,101260.0,0.3608]
[1734557360790,0.06172731,101270.0,101250.0,0.690825]
[1734557360791,0.049423,101260.0,101250.0,0.2806]
[1734557360983,0.410223,101260.0,101250.0,0.2806]
[1734557361286,0.049423,101260.0,101250.0,0.57297794]
[1734557361494,0.410223,101260.0,101250.0,0.29237794]
[1734557361876,0.049423,101260.0,101250.0,0.29237794]
[1734557362282,0.050423,101260.0,101250.0,0.29237794]
[1734557362482,0.050423,101260.0,101240.0,0.41030573]
[1734557362682,0.049427,101250.0,101240.0,0.41030573]
[1734557363487,0.049427,101250.0,101240.0,0.85500645]
[1734557363683,0.050427,101250.0,101240.0,0.85500645]
[1734557363877,0.051427,101250.0,101240.0,0.85500645]
[1734557364687,0.051427,101250.0,101240.0,0.49420645]
[1734557364897,0.051427,101250.0,101240.0,7.373e-05]
[1734557365393,0.050427,101250.0,101240.0,7.373e-05]
[1734557365591,0.051427,101250.0,101240.0,7.373e-05]
[1734557365995,0.049432,101240.0,101230.0,0.29385944]
[1734557366183,0.410232,101240.0,101230.0,0.29237794]
[1734557366383,0.049432,101240.0,101230.0,0.34181494]
[1734557366590,0.049432,101240.0,101230.0,0.49407234]
[1734557366995,0.05050931,101240.0,101230.0,0.49407234]
[1734557367795,0.049437,101230.0,101220.0,0.41024]
[1734557367996,0.049437,101230.0,101220.0,0.04944]
[1734557369790,0.049442,101220.0,101210.0,0.69947666]
[1734557370283,0.049442,101220.0,101210.0,0.63980245]
[1734557370896,0.050442,101220.0,101210.0,0.68924945]
[1734557372694,0.051442,101220.0,101210.0,0.68924945]
[1734557373090,0.051442,101220.0,101210.0,0.63980245]
[1734557373793,0.051442,101220.0,101210.0,0.27900245]
[1734557374694,0.051442,101220.0,101210.0,0.63980245]
[1734557375194,0.002,101220.0,101210.0,0.68924945]
[1734557375598,0.051442,101220.0,101210.0,0.68924945]
[1734557377390,0.002,101220.0,101210.0,0.85758992]
[1734557378197,0.05979501,101240.0,101210.0,1.20703692]
[1734557378389,0.05979501,101240.0,101230.0,0.410237]
[1734557378792,7.731e-05,101240.0,101230.0,0.57857747]
[1734557378997,7.731e-05,101240.0,101230.0,0.771037]
[1734557379194,7.731e-05,101240.0,101230.0,1.49887747]
[1734557379795,7.731e-05,101240.0,101230.0,1.330537]
[1734557380399,0.04950931,101240.0,101230.0,1.330537]
[1734557380608,0.05050931,101240.0,101230.0,1.330537]
[1734557380803,0.05150931,101240.0,101230.0,1.330537]
[1734557381604,0.00207731,101240.0,101230.0,1.330537]
[1734557382698,0.05150931,101240.0,101230.0,1.330537]
[1734557383399,0.00207731,101240.0,101230.0,1.330537]
[1734557383597,0.00107731,101240.0,101230.0,1.330537]
[1734557383797,7.731e-05,101240.0,101230.0,0.771037]
[1734557384003,0.05050931,101240.0,101230.0,0.771037]
[1734557384198,0.05050931,101240.0,101230.0,1.06341494]
[1734557384798,0.00107731,101240.0,101230.0,1.06341494]
[1734557385200,0.00107731,101240.0,101230.0,0.771037]
[1734557385697,0.00107731,101240.0,101230.0,0.78158024]
[1734557386411,0.05050931,101240.0,101230.0,0.78158024]
[1734557386602,0.05050931,101240.0,101230.0,1.22645521]
[1734557387501,0.05050931,101240.0,101230.0,0.86565521]
[1734557388004,0.04950931,101240.0,101230.0,0.86565521]
[1734557388206,0.05050931,101240.0,101230.0,0.86565521]
[1734557388803,0.04950931,101240.0,101230.0,0.86565521]
[1734557389002,0.05050931,101240.0,101230.0,0.86565521]
[1734557390402,0.04950931,101240.0,101230.0,0.86565521]
[1734557390609,0.05050931,101240.0,101230.0,0.86565521]
[1734557390811,0.00107731,101240.0,101230.0,1.09778662]
[1734557392107,0.05050931,101240.0,101230.0,1.09778662]
[1734557392611,0.05050931,101240.0,101230.0,0.65291165]
[1734557393608,0.05050931,101240.0,101230.0,0.94528959]
[1734557393813,0.04950931,101240.0,101230.0,0.94528959]
[1734557394113,0.05050931,101240.0,101230.0,0.94528959]
[1734557394907,0.05050931,101240.0,101230.0,1.0981603]
[1734557395413,0.00107731,101240.0,101230.0,1.0981603]
[1734557396406,0.00107731,101240.0,101230.0,1.21066501]
[1734557397011,0.00107731,101240.0,101230.0,0.9785336]
[1734557399622,0.05050931,101240.0,101230.0,0.86602889]
[1734557399921,0.00107731,101240.0,101230.0,0.91349856]
[1734557400122,0.00107731,101240.0,101230.0,0.9134949]
[1734557400711,0.049423,101260.0,101250.0,0.049423]
[1734557400905,0.049423,101260.0,101250.0,0.3608]
[1734557401119,0.049427,101250.0,101240.0,0.69173]
[1734557401524,0.56844351,101270.0,101250.0,0.049426]
[1734557401716,0.61786451,101270.0,101260.0,0.049422]
[1734557401917,0.61786451,101270.0,101250.0,0.410225]
[1734557401918,0.049422,101260.0,101250.0,0.410225]
[1734557402313,0.16192671,101260.0,101250.0,0.64215922]
[1734557402520,0.16192671,101260.0,101250.0,0.28135922]
[1734557402717,0.049422,101260.0,101250.0,0.28135922]
[1734557402926,0.62807748,101270.0,101260.0,0.049422]
[1734557403319,0.049422,101260.0,101250.0,0.28136022]
[1734557403919,0.049422,101260.0,101250.0,0.64216022]
[1734557404116,0.049422,101260.0,101250.0,0.23193422]
[1734557404117,0.16192671,101260.0,101250.0,0.23193422]
[1734557404315,0.52272671,101260.0,101250.0,0.23193422]
[1734557404610,0.79772671,101260.0,101250.0,0.23193422]
[1734557405630,0.685222,101260.0,101250.0,0.23193422]
[1734557405919,0.049427,101250.0,101240.0,0.64216522]
[1734557406123,0.049427,101250.0,101240.0,0.28136522]
[1734557407423,0.049427,101250.0,101240.0,0.57374316]
[1734557407626,0.49892493,101260.0,101250.0,0.049427]
[1734557407932,0.13812493,101260.0,101250.0,0.410227]
[1734557408421,0.13812493,101260.0,101250.0,0.23193422]
[1734557408721,0.13812493,101260.0,101250.0,0.28136122]
[1734557409315,0.13812493,101260.0,101250.0,0.64216122]
[1734557409826,0.13812493,101260.0,101250.0,0.410227]
[1734557410920,0.08869993,101260.0,101250.0,0.93523642]
[1734557411120,0.11845618,101270.0,101260.0,0.049422]
[1734557411423,0.11845618,101270.0,101260.0,0.83411307]
[1734557411629,0.11845618,101270.0,101260.0,0.78652671]
[1734557411829,0.16787318,101270.0,101260.0,0.674022]
[1734557412721,0.049417,101270.0,101260.0,1.18096203]
[1734557413027,0.049413,101280.0,101270.0,0.049415]
[1734557413223,0.049413,101280.0,101270.0,0.410215]
[1734557414228,0.049413,101280.0,101270.0,0.6422201]
[1734557414927,0.049413,101280.0,101270.0,0.2320051]
[1734557415135,0.93522242,101280.0,101270.0,0.2320051]
[1734557415336,0.049417,101270.0,101260.0,0.29000638]
[1734557415534,0.79102171,101270.0,101260.0,0.29000638]
[1734557416027,0.678517,101270.0,101260.0,0.29000638]
[1734557416431,0.317717,101270.0,101260.0,0.29000638]
[1734557416733,0.317717,101270.0,101250.0,0.52272871]
[1734557417033,0.049417,101270.0,101260.0,0.410222]
[1734557417643,0.31545316,101280.0,101260.0,0.410222]
[1734557417931,0.049415,101280.0,101260.0,0.389662]
[1734557418126,0.049415,101280.0,101260.0,0.028862]
[1734557418332,0.049415,101280.0,101260.0,0.389662]
[1734557418931,0.049417,101270.0,101260.0,0.389662]
[1734557421036,0.049415,101280.0,101260.0,0.389662]
[1734557421233,1.31828543,101290.0,101270.0,0.3608]
[1734557421534,0.72829543,101290.0,101280.0,0.410213]
[1734557421732,0.11845618,101290.0,101280.0,0.52271771]
[1734557422234,0.11845618,101290.0,101280.0,0.63522242]
[1734557422425,0.14758198,101300.0,101290.0,0.049408]
[1734557422622,0.14758198,101300.0,101290.0,1.35171271]
[1734557423039,0.05087947,101310.0,101290.0,1.30230471]
[1734557423224,0.05087947,101310.0,101300.0,0.410203]
[1734557424137,0.05087947,101310.0,101300.0,0.3608]
[1734557424325,0.16338418,101310.0,101300.0,0.3608]
[1734557424533,0.049403,101300.0,101290.0,0.29000638]
[1734557424833,0.049408,101290.0,101280.0,0.35238299]
[1734557425037,0.80341271,101290.0,101280.0,0.35238299]
[1734557425433,1.10341271,101290.0,101280.0,0.35238299]
[1734557425741,1.10341271,101290.0,101280.0,0.00011159]
[1734557426125,0.80341271,101290.0,101280.0,0.00011159]
[1734557426437,1.10341271,101290.0,101280.0,0.00011159]
[1734557427738,0.80341271,101290.0,101280.0,0.00011159]
[1734557428333,0.81825271,101290.0,101280.0,0.00011159]
[1734557428938,0.82865087,101290.0,101280.0,0.00011159]
[1734557430439,0.71614616,101290.0,101280.0,0.00011159]
[1734557430627,0.42060616,101290.0,101280.0,0.00011159]
[1734557430825,0.05980616,101290.0,101280.0,0.00011159]
[1734557431231,0.05980616,101290.0,101280.0,0.41032459]
[1734557431443,0.049404,101300.0,101290.0,0.049407]
[1734557431941,0.05967767,101300.0,101290.0,0.049407]
[1734557432735,0.55926445,101310.0,101300.0,0.049403]
[1734557432938,0.14906345,101310.0,101300.0,0.049403]
[1734557433138,0.00148147,101310.0,101300.0,0.410203]
[1734557433332,0.00148147,101310.0,101300.0,0.675303]
[1734557433741,0.05087947,101310.0,101300.0,0.675303]
[1734557434343,0.05087947,101310.0,101300.0,0.314503]
[1734557435043,0.05087947,101310.0,101290.0,0.410206]
[1734557435236,0.05087947,101310.0,101290.0,0.691506]
[1734557435844,0.049403,101300.0,101290.0,0.3608]
[1734557436237,0.049408,101290.0,101280.0,0.27811159]
[1734557436942,0.82271271,101290.0,101280.0,0.00011159]
[1734557437136,0.049418,101270.0,101260.0,0.3522714]
[1734557437443,0.52272271,101270.0,101260.0,0.3522714]
[1734557437944,0.049422,101260.0,101250.0,0.3608]
[1734557438144,0.16192671,101260.0,101250.0,0.3608]
[1734557438352,0.049422,101260.0,101250.0,0.3608]
[1734557440045,0.049422,101260.0,101250.0,0.410226]
[1734557440539,0.53275625,101270.0,101250.0,0.410226]
[1734557440942,0.42025154,101270.0,101250.0,0.45965]
[1734557441145,0.049414,101280.0,101260.0,0.3608]
[1734557441342,0.049414,101280.0,101270.0,0.3608]
[1734557441538,0.049414,101280.0,101260.0,0.41022]
[1734557441745,0.049414,101280.0,101270.0,0.3608]
[1734557442550,0.19707214,101290.0,101280.0,0.049413]
[1734557442848,0.04949016,101290.0,101280.0,0.410213]
[1734557443238,0.0597512,101290.0,101280.0,0.410213]
[1734557444047,0.0597512,101290.0,101280.0,0.049413]
[1734557444744,0.0597512,101290.0,101270.0,0.9221]
[1734557444745,0.049413,101280.0,101270.0,0.9221]
[1734557445147,0.410213,101280.0,101270.0,0.5613]
[1734557445340,0.049413,101280.0,101270.0,0.5613]
[1734557445847,0.52946367,101280.0,101250.0,0.77260007]
[1734557446144,0.049419,101270.0,101250.0,1.30420007]
[1734557446349,0.049423,101260.0,101250.0,1.2940964]
[1734557447252,0.049423,101260.0,101250.0,0.8838714]
[1734557447446,0.87888667,101260.0,101250.0,0.3522714]
[1734557447751,0.049438,101230.0,101220.0,0.87631719]
[1734557447946,0.93970167,101230.0,101220.0,0.87631719]
[1734557448147,0.93970167,101230.0,101220.0,0.85570642]
[1734557448353,0.95454167,101230.0,101220.0,0.85570642]
[1734557448743,0.9546645,101230.0,101220.0,0.85570642]
[1734557448944,0.9546645,101230.0,101220.0,0.85870642]
[1734557449144,0.9546645,101230.0,101220.0,0.003]
[1734557449545,0.9546645,101230.0,101220.0,0.008]
[1734557450248,0.9546645,101230.0,101220.0,0.003]
[1734557450444,0.049447,101210.0,101200.0,0.0005]
[1734557450649,0.049447,101210.0,101190.0,0.93316509]
[1734557451754,0.050447,101210.0,101200.0,0.3673]
[1734557452047,0.050447,101210.0,101200.0,0.3613]
[1734557452048,0.049447,101210.0,101200.0,0.3613]
[1734557452353,0.050447,101210.0,101200.0,0.3613]
[1734557452554,0.050447,101210.0,101200.0,0.3643]
[1734557452956,0.001,101210.0,101200.0,0.413752]
[1734557453450,0.001,101210.0,101200.0,0.411752]
[1734557453653,0.049447,101210.0,101200.0,0.3618]
[1734557454346,0.049447,101210.0,101200.0,0.004]
[1734557454547,0.049447,101210.0,101200.0,0.3648]
[1734557455055,0.049447,101210.0,101200.0,0.004]
[1734557455245,0.049447,101210.0,101200.0,0.3648]
[1734557455861,0.049447,101210.0,101200.0,0.004]
[1734557457953,0.049447,101210.0,101200.0,0.414252]
[1734557458752,0.049444,101220.0,101200.0,0.414252]
[1734557459246,0.4206744,101230.0,101210.0,0.049446]
[1734557459441,0.0798861,101230.0,101210.0,0.3608]
[1734557459749,0.049446,101220.0,101200.0,0.414251]
[1734557459948,0.049447,101210.0,101200.0,0.3608]
[1734557460846,0.55990977,101230.0,101200.0,0.3608]
[1734557461048,0.55990977,101230.0,101210.0,0.3608]
[1734557461049,0.049444,101220.0,101210.0,0.3608]
[1734557461355,0.049447,101210.0,101200.0,0.003]
[1734557461657,0.410247,101210.0,101200.0,0.003]
[1734557462159,0.049444,101220.0,101200.0,0.413251]
[1734557463055,0.21810767,101220.0,101200.0,0.001]
[1734557463261,0.21811067,101210.0,101200.0,0.001]
[1734557463451,0.049447,101210.0,101200.0,0.001]
[1734557464354,0.049447,101210.0,101200.0,0.004]
[1734557464546,0.049447,101210.0,101200.0,0.003]
[1734557464751,0.049462,101180.0,101160.0,0.36278268]